Cogmind - Beta 11 @@@ ROGUE MODE // 2022.03.19 @ 15:08:48 Player: Mr.Manatee Result: Self-destructed Performance ------------- Evolutions (5) 2500 Regions Visited (15) 3000 Robots Destroyed (155) 775 Value Destroyed (5969) 5969 Prototype IDs (42) 840 Alien Tech Used (0) 0 Bonus (5608) 5608 TOTAL SCORE: 18692 Bonus ------- High Alert Combat Kills 385 Follower Combat Kills 2166 Entered Garrisons 600 Used RIF Installer 1500 Aligned with FarCom 300 Built Enhanced Grunts 300 A7 Reached Mainframe 300 Met R17 at Cetus 500 Friendly Fire -443 Cogmind --------- Core Integrity 1000/1000 Matter 274/300 Energy 350/350 System Corruption 0% Temperature Cool (0) Movement Treading (160) Location -5/Factory Parts ------- > --- POWER (1) -------- Quantum Reactor > --- PROPULSION (4) --- Medium Treads Improved Medium Treads Centrium Heavy Treads > --- UTILITY (8) ------ Advanced Heat Sink Medium Storage Unit Core Analyzer Centrium Medium Armor Plating Centrium Medium Armor Plating Centrium Medium Armor Plating Centrium Medium Armor Plating Medium Regenerative Plating > --- WEAPON (4) ------- Advanced Variable Charge Gun XL Autogun Subcomponent Advanced KE Penetrator Advanced KE Penetrator > --- INVENTORY (10) --- Quantum Reactor Improved Medium Treads High-capacity Matter Pod (200) Reaction Control System Improved Field Recycling Unit (161) XL Autogun Subcomponent Shock Maul Peak State ------------ > --- POWER ------------ Quantum Reactor > --- PROPULSION ------- Medium Treads Improved Medium Treads Centrium Heavy Treads > --- UTILITY ---------- Advanced Heat Sink Medium Storage Unit Core Analyzer Centrium Medium Armor Plating Centrium Medium Armor Plating Centrium Medium Armor Plating Centrium Medium Armor Plating Medium Regenerative Plating > --- WEAPON ----------- Advanced Variable Charge Gun XL Autogun Subcomponent Advanced KE Penetrator Advanced KE Penetrator > --- INVENTORY -------- Quantum Reactor Improved Medium Treads High-capacity Matter Pod Reaction Control System Improved Field Recycling Unit XL Autogun Subcomponent Shock Maul [Rating: 122] Favorites ----------- Power Hybrid Antimatter Reactor Engine Light Ion Engine Power Core Light Nuclear Core Reactor Hybrid Antimatter Reactor Propulsion Improved Medium Treads Treads Improved Medium Treads Leg Aluminum Leg Utility Medium Storage Unit Device Improved Heat Sink Storage Medium Storage Unit Processor Core Analyzer Protection Improved Weapon Shielding Weapon XL Autogun Subcomponent Energy Gun Medium Laser Ballistic Gun XL Autogun Subcomponent Launcher Grenade Launcher Build | -11 -10 -10 -10 -9 -8 -8 -8 -7 -7 -6 -6 -6 -6 -6 -5 ------- Run | Scr Mat Min Exi Min Mat Sto Gar Fac Gar Fac Gar Fac Ext Cet Fac Slots Evolved 10 | . . . . . 4 . . 2 . 2 . . . . 2 Power . | . . . . . . . . . . . . . . . . Propulsion 2 | . . . . . 1 . . . . . . . . . 1 Utility 6 | . . . . . 1 . . 2 . 2 . . . . 1 Weapon 2 | . . . . . 2 . . . . . . . . . . Parts Attached 99 | 6 15 . . 4 7 12 . 7 5 4 . 19 9 9 2 Power 13 | 1 1 . . . 1 1 . 1 3 . . 3 1 1 . Engine 7 | 1 1 . . . . . . . 3 . . 2 . . . Core 3 | . . . . . 1 1 . 1 . . . . . . . Reactor 3 | . . . . . . . . . . . . 1 1 1 . Propulsion 32 | 2 6 . . 1 2 8 . . 1 . . 8 2 1 1 Treads 21 | . . . . . . 8 . . 1 . . 8 2 1 1 Leg 11 | 2 6 . . 1 2 . . . . . . . . . . Wheel . | . . . . . . . . . . . . . . . . Hover . | . . . . . . . . . . . . . . . . Flight . | . . . . . . . . . . . . . . . . Utility 35 | 1 2 . . . 3 3 . 6 1 4 . 4 6 4 1 Device 11 | . . . . . 1 . . 2 1 1 . 3 3 . . Storage 4 | 1 1 . . . 1 . . . . 1 . . . . . Processor 1 | . . . . . . . . 1 . . . . . . . Hackware . | . . . . . . . . . . . . . . . . Protection 19 | . 1 . . . 1 3 . 3 . 2 . 1 3 4 1 Artifact . | . . . . . . . . . . . . . . . . Weapon 19 | 2 6 . . 3 1 . . . . . . 4 . 3 . Energy Gun 9 | . 5 . . 3 . . . . . . . . . 1 . Energy Cannon . | . . . . . . . . . . . . . . . . Ballistic Gun 9 | 2 . . . . 1 . . . . . . 4 . 2 . Ballistic Cannon . | . . . . . . . . . . . . . . . . Launcher 1 | . 1 . . . . . . . . . . . . . . Special Weapon . | . . . . . . . . . . . . . . . . Impact Weapon . | . . . . . . . . . . . . . . . . Slashing Weapon . | . . . . . . . . . . . . . . . . Piercing Weapon . | . . . . . . . . . . . . . . . . Special Melee Weapon . | . . . . . . . . . . . . . . . . Unidentified Prototypes 8 | . . . . . . . . . . 1 . 2 1 4 . Corrupted Parts 1 | . . . . . . . . . . . . . . 1 . System Corruption 5 | . . . . . . . . . . . . . . 5 . Parts Lost 6 | . 3 . . . . . . . . . . 1 2 . . Power 3 | . 1 . . . . . . . . . . 1 1 . . Propulsion 1 | . 1 . . . . . . . . . . . . . . Utility 1 | . . . . . . . . . . . . . 1 . . Weapon 1 | . 1 . . . . . . . . . . . . . . Highest Loss Streak 3 | . 3 . . . . . . . . . . 1 2 . . To Critical Strikes . | . . . . . . . . . . . . . . . . Average Slot Usage (%) 82 | . 85 100 100 100 71 71 72 75 76 73 73 70 97 99 94 Engine 3 | . 12 14 14 14 1 . . . 6 6 6 2 . . . Core 1 | . . . . . 7 9 9 7 . . . . . . . Reactor 2 | . . . . . . . . . . . . 3 5 6 5 Treads 16 | . . . . . . 19 27 23 23 20 20 20 20 19 17 Leg 5 | . 27 28 28 28 27 7 . . . . . . . . . Device 7 | . . . . . 8 . . 8 7 6 6 8 17 6 5 Storage 10 | . 14 14 14 14 9 9 9 7 7 13 13 13 8 6 5 Processor 4 | . . . . . . . . 4 7 6 6 6 6 6 5 Protection 12 | . 3 14 14 14 9 17 18 15 15 12 13 6 10 25 29 Energy Gun 4 | . 25 28 28 28 . . . . . . . . . 5 5 Ballistic Gun 10 | . 1 . . . 9 9 9 7 7 6 6 7 26 20 17 Naked Turns . | . . . . . . . . . . . . . . . . Heaviest Build 87 | 10 13 13 13 14 33 37 37 40 45 62 62 69 66 80 87 Greatest Support 138 | 20 20 20 20 25 35 62 62 62 62 62 62 90 90 110 138 Greatest Overweight (x) 1 | . 1 . . . . 1 . . . . . . . . . Average Overweight (x) . | . . . . . . . . . . . . . . . . Largest Inventory Capacity 10 | 8 8 8 8 8 10 10 10 10 10 10 10 10 10 10 10 Average Capacity 9 | 7 8 8 8 8 8 10 10 10 10 10 10 10 10 10 10 Most Carried 10 | 4 8 8 8 8 10 10 10 10 10 10 10 10 10 10 8 Average Carried 9 | 2 7 8 7 8 7 9 10 9 9 8 9 9 9 9 7 Final Capacity 10 | 8 8 8 8 8 10 10 10 10 10 10 10 10 10 10 10 Final Carried 10 | 4 8 8 8 8 10 10 10 10 10 9 10 10 10 9 7 Class Distribution -------------------- 41% | Scavenger-Tank 21% | Skirmisher 16% | Mutant 9% | Tank 5% | Scavenger-Skirmisher Dominant Class ---------------- Mutant | -10/Materials Mutant | -10/Mines Mutant | -10/Exiles Mutant | -9/Mines Skirmisher | -8/Materials Tank | -8/Storage Tank | -8/Garrison Scavenger-Tank | -7/Factory Scavenger-Tank | -7/Garrison Scavenger-Tank | -6/Factory Scavenger-Tank | -6/Garrison Skirmisher | -6/Factory Scavenger-Tank | -6/Extension Scavenger-Tank | -6/Cetus Scavenger-Tank | -5/Factory Resources | -11 -10 -10 -10 -9 -8 -8 -8 -7 -7 -6 -6 -6 -6 -6 -5 ----------- Run | Scr Mat Min Exi Min Mat Sto Gar Fac Gar Fac Gar Fac Ext Cet Fac Matter Collected 5741 | 207 135 . 123 40 111 854 318 335 572 . 706 1260 731 347 2 Remotely . | . . . . . . . . . . . . . . . . Salvage Created 7669 | . 346 . . 211 169 1385 498 407 611 . 887 1901 1079 175 . Parts 416 | . 23 . . 5 11 76 32 37 35 . 48 87 53 9 . Haulers Intercepted 9 | . 1 . . . 1 3 . . . . . 4 . . . Recyclers Shooed 5 | . . . . 1 . . . . . . . 3 1 . . Parts Field Recycled 26 | . . . . . . . . . . . . 26 . . . Retrieved Matter 406 | . . . . . . . . . . . . 406 . . . Parts Self-Destructed . | . . . . . . . . . . . . . . . . Prevented . | . . . . . . . . . . . . . . . . Kills | -11 -10 -10 -10 -9 -8 -8 -8 -7 -7 -6 -6 -6 -6 -6 -5 ------- Run | Scr Mat Min Exi Min Mat Sto Gar Fac Gar Fac Gar Fac Ext Cet Fac Combat Hostiles Destroyed 125 | . 12 . . 2 2 22 15 9 12 . 15 20 14 2 . Guns 117 | . 5 . . 1 2 22 15 9 12 . 15 20 14 2 . AOE 6 | . 6 . . . . . . . . . . . . . . Classes Destroyed 18 | . 3 . . 1 . 5 2 1 1 . 2 1 2 . . Worker 4 | . . . . . . 1 . 1 . . . 2 . . . Builder 5 | . . . . . . 2 . . . . . 1 2 . . Hauler 9 | . 1 . . . 1 3 . . . . . 4 . . . Recycler 5 | . . . . 1 . . . . . . . 3 1 . . Operator 2 | . . . . . . . . . . . . . 2 . . Watcher 3 | . . . . . . 1 . . . . . . 2 . . Swarmer 20 | . 3 . . . . . 8 3 . . . 5 1 . . Cutter 3 | . . . . . . . . . 3 . . . . . . Grunt 50 | . 9 . . 2 2 12 2 3 2 . 6 6 6 . . Brawler 4 | . . . . . . . 1 . 2 . 1 . . . . Duelist 6 | . . . . . . . 1 . 3 . 1 . 1 . . Protector 1 | . . . . . . . . . . . 1 . . . . Sentry 23 | . . . . . . 9 3 1 1 . 2 5 2 . . Demolisher 1 | . . . . . . . . . . . 1 . . . . Hunter 8 | . . . . . . 1 . . . . 2 1 2 2 . Programmer 6 | . . . . . . . . 2 1 . 1 2 . . . Heavy 1 | . . . . . . . . . . . . 1 . . . Behemoth 2 | . . . . . . . . . . . . . 2 . . Thug 2 | . . . . 1 . . . . . . . . . 1 . Best Kill Streak 9 | . 7 . . 3 2 7 9 4 8 . 4 5 8 2 . Combat Bots Only 9 | . 6 . . 2 1 6 9 4 8 . 4 4 4 2 . Max Kills in Single Turn 4 | . 4 . . 2 1 2 2 2 1 . 1 2 2 1 . Gunslinging 1 | . . . . . . . . . . . . . 1 . . Exploded 3 | . 3 . . . . . . . . . . . . . . Melee . | . . . . . . . . . . . . . . . . Uniques/NPCs Destroyed . | . . . . . . . . . . . . . . . . Combat | -11 -10 -10 -10 -9 -8 -8 -8 -7 -7 -6 -6 -6 -6 -6 -5 -------- Run | Scr Mat Min Exi Min Mat Sto Gar Fac Gar Fac Gar Fac Ext Cet Fac Damage Taken 3933 | . 681 . . 12 48 290 242 138 118 . 354 994 874 82 100 Core 423 | . 198 . . . 15 90 15 17 . . . 67 21 . . Absorbed by Shields 75 | . . . . . . . . . . . . . 26 49 . Redirected to Shielding 243 | . 3 . . . 20 37 85 14 43 . 41 . . . . Regen/Repaired (Parts) 256 | . . . . . . 142 . 85 . . . . 1 28 . Core Remaining (%) 76 | 100 . . . 20 . . 78 . 97 . . . . 89 . Volleys Fired 316 | . 21 . . 8 6 49 22 15 20 . 41 70 46 17 1 Largest 4 | . 2 . . 2 1 1 1 1 1 . 1 4 4 4 4 Hottest 240 | . 100 . . 100 60 60 60 60 60 . 60 80 80 240 170 Shots Fired 537 | . 36 . . 16 6 49 22 15 20 . 41 84 184 60 4 Gun 530 | . 29 . . 16 6 49 22 15 20 . 41 84 184 60 4 Cannon . | . . . . . . . . . . . . . . . . Launcher 7 | . 7 . . . . . . . . . . . . . . Special . | . . . . . . . . . . . . . . . . Kinetic 477 | . . . . . 6 49 22 15 20 . 41 84 184 53 3 Thermal 53 | . 29 . . 16 . . . . . . . . . 7 1 Explosive 7 | . 7 . . . . . . . . . . . . . . Electromagnetic . | . . . . . . . . . . . . . . . . Robot Hit Streak 21 | . 7 . . 8 3 21 7 9 9 . 7 13 13 8 1 Robot Miss Streak 7 | . 2 . . 2 6 5 4 3 3 . 5 7 5 3 3 Penetration Max . | . . . . . . . . . . . . . . . . Secondary Targets 4 | . . . . . . . . . . . . . 3 1 . Max Gunslinging Chain 1 | . . . . . . . . . . . . . 1 1 . Shots Hit Robots 395 | . 22 . . 10 5 47 21 15 19 . 40 71 109 35 1 Core Hits 286 | . 22 . . 4 5 40 20 14 21 . 38 60 47 15 . Critical Kills . | . . . . . . . . . . . . . . . . Critical Parts Destroyed . | . . . . . . . . . . . . . . . . Critical Strikes 5 | . 1 . . 4 . . . . . . . . . . . Burn 5 | . 1 . . 4 . . . . . . . . . . . Melee Attacks . | . . . . . . . . . . . . . . . . Impact . | . . . . . . . . . . . . . . . . Slashing . | . . . . . . . . . . . . . . . . Piercing . | . . . . . . . . . . . . . . . . Sneak Attacks . | . . . . . . . . . . . . . . . . Combat Hostiles . | . . . . . . . . . . . . . . . . Follow-up Attacks . | . . . . . . . . . . . . . . . . Damage Inflicted 15610 | . 611 . . 147 182 2861 1136 617 1166 . 1977 3863 2286 707 57 Guns 15137 | . 241 . . 147 182 2805 1136 617 1166 . 1977 3850 2254 707 55 Cannons . | . . . . . . . . . . . . . . . . Explosions 420 | . 370 . . . . 50 . . . . . . . . . Melee . | . . . . . . . . . . . . . . . . Ramming 53 | . . . . . . 6 . . . . . 13 32 . 2 Kinetic 14664 | . . . . . 182 2805 1136 617 1166 . 1977 3850 2254 622 55 Thermal 473 | . 241 . . 147 . . . . . . . . . 85 . Explosive 420 | . 370 . . . . 50 . . . . . . . . . Electromagnetic . | . . . . . . . . . . . . . . . . Impact . | . . . . . . . . . . . . . . . . Slashing . | . . . . . . . . . . . . . . . . Piercing . | . . . . . . . . . . . . . . . . Highest Corruption 23 | . . . . . . . . . . 10 11 17 17 23 . Average Corruption 15 | . . . . . . . . . . 7 10 14 17 22 . Corruption Purged . | . . . . . . . . . . . . . . . . Corruption Blocked . | . . . . . . . . . . . . . . . . Effects 237 | . . . . . . . . . . 2 25 94 83 33 . Message Errors 42 | . . . . . . . . . . 1 6 16 16 3 . Matter Fused 63 | . . . . . . . . . . 1 8 30 13 11 . Heat Flow Errors 30 | . . . . . . . . . . . 1 15 10 4 . Energy Discharges 30 | . . . . . . . . . . . 2 10 12 6 . Data Loss (minor) 27 | . . . . . . . . . . . 3 9 11 4 . Data Loss (major) 17 | . . . . . . . . . . . 4 4 7 2 . Misfires 10 | . . . . . . . . . . . . 5 3 2 . Alerts 8 | . . . . . . . . . . . 1 2 5 . . Misdirections 3 | . . . . . . . . . . . . . 3 . . Weapon Failures 7 | . . . . . . . . . . . . 3 3 1 . Overload Shots 1 | . . . . . . . . . . . . . . 1 . Overflow Damage . | . . . . . . . . . . . . . . . . Projectiles . | . . . . . . . . . . . . . . . . Explosions . | . . . . . . . . . . . . . . . . Melee . | . . . . . . . . . . . . . . . . Knockbacks . | . . . . . . . . . . . . . . . . Impact . | . . . . . . . . . . . . . . . . Kinetic . | . . . . . . . . . . . . . . . . Secondary . | . . . . . . . . . . . . . . . . Self-Inflicted Damage 64 | . 38 . . . . . . . . . . 26 . . . Shots 2 | . 1 . . . . . . . . . . 1 . . . Rammed 4 | . . . . . . . . . . . . 2 1 . 1 Targets Rammed 6 | . . . . . . 1 . . . . . 2 2 . 1 Kicked . | . . . . . . . . . . . . . . . . Crushed 2 | . . . . . . 1 . . . . . . 1 . . Highest Temperature 395 | . 219 . . 165 81 314 395 72 147 . 246 278 253 175 45 Average Temperature 84 | . 91 . . 71 40 92 164 29 50 . 88 73 70 64 25 Received Heat Transfer 763 | . 273 . . 6 27 90 45 9 . . 42 99 160 12 . Effects 1 | . . . . . . . 1 . . . . . . . . Shutdowns 1 | . . . . . . . 1 . . . . . . . . Siege Activations . | . . . . . . . . . . . . . . . . Robots Corrupted . | . . . . . . . . . . . . . . . . Combat Hostiles . | . . . . . . . . . . . . . . . . Parts Fried 4 | . . . . . . 1 . . . . . . . 3 . Impact Corruptions . | . . . . . . . . . . . . . . . . Robots Melted 3 | . 1 . . 2 . . . . . . . . . . . Combat Hostiles 2 | . 1 . . 1 . . . . . . . . . . . Parts Melted 7 | . 1 . . 6 . . . . . . . . . . . Heat Transferred 1628 | . 777 . . 740 . . . . . . . . . 111 . Parts Sabotaged . | . . . . . . . . . . . . . . . . Parts Stolen . | . . . . . . . . . . . . . . . . Parts Stripped . | . . . . . . . . . . . . . . . . Power Chain Reactions 2 | . . . . . . . . . . . . 2 . . . Missiles Intercepted . | . . . . . . . . . . . . . . . . Alert | -11 -10 -10 -10 -9 -8 -8 -8 -7 -7 -6 -6 -6 -6 -6 -5 ------- Run | Scr Mat Min Exi Min Mat Sto Gar Fac Gar Fac Gar Fac Ext Cet Fac Peak Influence 1401 | . 432 102 . 99 54 471 618 564 487 260 542 471 518 1401 840 Initial 784 | . . 102 . . . 22 293 324 202 255 182 284 217 289 784 Average 348 | . 182 102 . 10 14 291 532 405 410 259 427 353 237 767 792 Maximum Alert Level 4 | . 2 . . . . 2 2 2 2 1 2 2 2 4 3 Low Security (%) 24 | 100 64 100 . 100 100 37 . . . . 6 6 37 . . Level 1 38 | . 26 . . . . 33 7 54 25 100 25 59 52 14 . Level 2 30 | . 8 . . . . 28 92 45 74 . 68 33 9 25 . Level 3 6 | . . . . . . . . . . . . . . 49 100 Level 4 . | . . . . . . . . . . . . . . 10 . Level 5 . | . . . . . . . . . . . . . . . . High Security . | . . . . . . . . . . . . . . . . Max Security . | . . . . . . . . . . . . . . . . Squads Dispatched 25 | . 3 . . 1 1 6 . 3 . . . 6 1 2 2 Investigation 7 | . 1 . . . . 1 . 1 . . . . 1 2 1 Extermination 4 | . . . . . . . . 2 . . . 2 . . . Reinforcement 11 | . 2 . . . 1 3 . . . . . 4 . . 1 Assault 1 | . . . . 1 . . . . . . . . . . . Garrison 2 | . . . . . . 2 . . . . . . . . . Intercept . | . . . . . . . . . . . . . . . . Searches Triggered . | . . . . . . . . . . . . . . . . Construction Impeded 2 | . . . . . . 1 . . . . . . . . 1 Haulers Reinforced 1 | . . . . . . . . . . . . 1 . . . Active Scanning Responses . | . . . . . . . . . . . . . . . . Cargo Convoy Interrupts . | . . . . . . . . . . . . . . . . Stealth | -11 -10 -10 -10 -9 -8 -8 -8 -7 -7 -6 -6 -6 -6 -6 -5 --------- Run | Scr Mat Min Exi Min Mat Sto Gar Fac Gar Fac Gar Fac Ext Cet Fac Distress Signals 11 | . 1 . . . . 3 . . . . . 2 3 2 . Communications Jammed . | . . . . . . . . . . . . . . . . Distress Signals . | . . . . . . . . . . . . . . . . Times Spotted 198 | . 15 . . 4 3 29 16 9 12 . 14 28 39 25 4 Peak Tracking Total 8 | . 6 . . 3 1 5 7 4 5 . 3 3 8 5 3 Tactical Retreats 5 | . . . . . . . 1 . . . 1 . 3 . . Traps | -11 -10 -10 -10 -9 -8 -8 -8 -7 -7 -6 -6 -6 -6 -6 -5 ------- Run | Scr Mat Min Exi Min Mat Sto Gar Fac Gar Fac Gar Fac Ext Cet Fac Traps Triggered 14 | . 1 . . . . 3 2 1 . 3 . 4 . . . Indirectly . | . . . . . . . . . . . . . . . . Trap Hack Attempts . | . . . . . . . . . . . . . . . . Triggered . | . . . . . . . . . . . . . . . . Disarmed . | . . . . . . . . . . . . . . . . Reprogrammed . | . . . . . . . . . . . . . . . . Reused . | . . . . . . . . . . . . . . . . Traps Extracted . | . . . . . . . . . . . . . . . . Installed . | . . . . . . . . . . . . . . . . Triggered . | . . . . . . . . . . . . . . . . Machines | -11 -10 -10 -10 -9 -8 -8 -8 -7 -7 -6 -6 -6 -6 -6 -5 ---------- Run | Scr Mat Min Exi Min Mat Sto Gar Fac Gar Fac Gar Fac Ext Cet Fac Machines Disabled 24 | . . . . . . 6 . 2 . . . 5 5 6 . Max in Single Turn 2 | . . . . . . 2 . 1 . . . 1 1 2 . Garrison Access 2 | . . . . . . . . . . . . 2 . . . Machines Sabotaged . | . . . . . . . . . . . . . . . . Garrisons Compromised . | . . . . . . . . . . . . . . . . Overloaded Fab Kills . | . . . . . . . . . . . . . . . . Hacking | -11 -10 -10 -10 -9 -8 -8 -8 -7 -7 -6 -6 -6 -6 -6 -5 --------- Run | Scr Mat Min Exi Min Mat Sto Gar Fac Gar Fac Gar Fac Ext Cet Fac Machines Accessed 53 | . 4 . 4 . . 9 . 5 . 3 . 9 16 2 1 Terminals 36 | . 4 . . . . 7 . 3 . 1 . 3 16 2 . Fabricators 2 | . . . . . . . . . . . . 2 . . . Repair Stations 3 | . . . . . . 1 . 1 . . . 1 . . . Recycling Units 1 | . . . . . . . . . . 1 . . . . . Scanalyzers 2 | . . . . . . . . . . . . 1 . . 1 Garrison Access 5 | . . . . . . 1 . 1 . 1 . 2 . . . Total Hacks 134 | . 8 . 19 . . 32 . 15 . 6 . 19 30 4 1 Successful 73 | . 5 . 19 . . 17 . 6 . 3 . 10 12 . 1 Failed 61 | . 3 . . . . 15 . 9 . 3 . 9 18 4 . Catastrophic 15 | . 1 . . . . 3 . 3 . . . 2 4 2 . Database Lockouts . | . . . . . . . . . . . . . . . . Manual 43 | . 6 . 1 . . 17 . 7 . . . 5 5 1 1 Terminals 84 | . 8 . . . . 24 . 8 . 4 . 6 30 4 . Fabricators 4 | . . . . . . . . . . . . 4 . . . Repair Stations 14 | . . . . . . 7 . 6 . . . 1 . . . Recycling Units 1 | . . . . . . . . . . 1 . . . . . Scanalyzers 5 | . . . . . . . . . . . . 4 . . 1 Garrison Access 7 | . . . . . . 1 . 1 . 1 . 4 . . . Terminal Hacks 45 | . 2 . 19 . . 9 . . . 1 . 3 11 . . Record 18 | . . . 18 . . . . . . . . . . . . Robot Analysis 4 | . . . . . . 4 . . . . . . . . . Prototype ID Bank 5 | . 2 . . . . 2 . . . . . . 1 . . Open Door 11 | . . . . . . 2 . . . . . . 9 . . Open DSF 2 | . . . . . . . . . . 1 . 1 . . . Terminal Index 1 | . . . . . . . . . . . . 1 . . . Repair Station Index 1 | . . . . . . . . . . . . 1 . . . Unreport Threat 2 | . . . . . . 1 . . . . . . 1 . . EX-Prototype ID Bank 1 | . . . 1 . . . . . . . . . . . . Fabricator Hacks 2 | . . . . . . . . . . . . 2 . . . Network Status 1 | . . . . . . . . . . . . 1 . . . Build 1 | . . . . . . . . . . . . 1 . . . Repair Station Hacks 8 | . . . . . . 5 . 3 . . . . . . . Scan Component 5 | . . . . . . 3 . 2 . . . . . . . Repair 3 | . . . . . . 2 . 1 . . . . . . . Recycling Unit Hacks 1 | . . . . . . . . . . 1 . . . . . Retrieve Components 1 | . . . . . . . . . . 1 . . . . . Scanalyzer 2 | . . . . . . . . . . . . 2 . . . Insert Component 1 | . . . . . . . . . . . . 1 . . . Analyze 1 | . . . . . . . . . . . . 1 . . . Garrison Access Hacks 6 | . . . . . . 1 . 1 . 1 . 3 . . . Unlock Access 3 | . . . . . . 1 . 1 . 1 . . . . . Seal Access 2 | . . . . . . . . . . . . 2 . . . Coupler Status 1 | . . . . . . . . . . . . 1 . . . Unauthorized Hacks 9 | . 3 . . . . 2 . 2 . . . . 1 . 1 Terminals 8 | . 3 . . . . 2 . 2 . . . . 1 . . Track 1 | . 1 . . . . . . . . . . . . . . Botnet 7 | . 2 . . . . 2 . 2 . . . . 1 . . Fabricators . | . . . . . . . . . . . . . . . . Repair Stations . | . . . . . . . . . . . . . . . . Recycling Units . | . . . . . . . . . . . . . . . . Scanalyzers 1 | . . . . . . . . . . . . . . . 1 Extract 1 | . . . . . . . . . . . . . . . 1 Garrison Access . | . . . . . . . . . . . . . . . . Data Cores Recovered 2 | . . . . . . . . . . . . . 2 . . Used 1 | . . . . . . . . . . . . . 1 . . Hacking Detections 38 | . 4 . . . . 7 . 4 . 2 . 7 11 3 . Full Trace Events 6 | . . . . . . 2 . 1 . . . . 1 2 . Feedback Events 1 | . . . . . . . . . . . . . . 1 . Corruption 1 | . . . . . . . . . . . . . . 1 . Feedback Blocked . | . . . . . . . . . . . . . . . . Robot Schematics Acquired . | . . . . . . . . . . . . . . . . Robots Built . | . . . . . . . . . . . . . . . . Authchips . | . . . . . . . . . . . . . . . . Time . | . . . . . . . . . . . . . . . . Total Robot Build Rating . | . . . . . . . . . . . . . . . . Part Schematics Acquired 2 | . . . . . . . . . . . . 1 . . 1 Parts Built 2 | . . . . . . . . . . . . 2 . . . Authchips . | . . . . . . . . . . . . . . . . Time 117 | . . . . . . . . . . . . 117 . . . Total Part Build Rating 14 | . . . . . . . . . . . . 14 . . . Parts Repaired 3 | . . . . . . 2 . 1 . . . . . . . Time 95 | . . . . . . 76 . 19 . . . . . . . Parts Recycled . | . . . . . . . . . . . . . . . . Recycled Matter . | . . . . . . . . . . . . . . . . Retrieved Matter . | . . . . . . . . . . . . . . . . Retrieved Components . | . . . . . . . . . . . . . . . . Parts Scanalyzed 1 | . . . . . . . . . . . . 1 . . . Part Schematics Acquired 1 | . . . . . . . . . . . . 1 . . . Parts Damaged . | . . . . . . . . . . . . . . . . Bothacking | -11 -10 -10 -10 -9 -8 -8 -8 -7 -7 -6 -6 -6 -6 -6 -5 ------------ Run | Scr Mat Min Exi Min Mat Sto Gar Fac Gar Fac Gar Fac Ext Cet Fac Used RIF Installer 3 | . . . . . . . 1 . 1 . 1 . . . . Hotswap 1 | . . . . . . . . . . . 1 . . . . Zone Cloak 1 | . . . . . . . . . 1 . . . . . . Robots Hacked . | . . . . . . . . . . . . . . . . Non-combat . | . . . . . . . . . . . . . . . . Combat . | . . . . . . . . . . . . . . . . Robot Hacks Applied . | . . . . . . . . . . . . . . . . Relay Couplers Released 3 | . . . . . . . . . . . . 3 . . . Machine Destruction 3 | . . . . . . . . . . . . 3 . . . Fabnet Peak Effective % . | . . . . . . . . . . . . . . . . Robots Rewired 22 | . . . . . . . . . . . . . 22 . . Allies Hacked . | . . . . . . . . . . . . . . . . Hacks Repelled . | . . . . . . . . . . . . . . . . Allies | -11 -10 -10 -10 -9 -8 -8 -8 -7 -7 -6 -6 -6 -6 -6 -5 -------- Run | Scr Mat Min Exi Min Mat Sto Gar Fac Gar Fac Gar Fac Ext Cet Fac Total Allies 40 | . . . . 1 . . . . . . . . 34 5 . Largest Group 14 | . . . . 1 . . . . . . . . 14 13 9 Highest-Rated Group 761 | . . . . 31 . . . . . . . . 513 761 730 Highest-Rated Ally 159 | . . . . 31 . . . . . . . . 159 152 152 Total Orders . | . . . . . . . . . . . . . . . . Ally Attacks 307 | . . . . 9 . . . . . . . . 132 155 11 Total Damage 7209 | . . . . 148 . . . . . . . . 2679 4058 324 Kills 60 | . . . . 2 . . . . . . . . 23 34 1 Allies Corrupted . | . . . . . . . . . . . . . . . . Allies Melted 2 | . . . . . . . . . . . . . . . 2 Intel | -11 -10 -10 -10 -9 -8 -8 -8 -7 -7 -6 -6 -6 -6 -6 -5 ------- Run | Scr Mat Min Exi Min Mat Sto Gar Fac Gar Fac Gar Fac Ext Cet Fac Robot Analysis Total 4 | . . . . . . 4 . . . . . . . . . Derelict Logs Recovered 1 | . . . . 1 . . . . . . . . . . . Drone Launches . | . . . . . . . . . . . . . . . . Drone Recoveries . | . . . . . . . . . . . . . . . . Exploration | -11 -10 -10 -10 -9 -8 -8 -8 -7 -7 -6 -6 -6 -6 -6 -5 ------------- Run | Scr Mat Min Exi Min Mat Sto Gar Fac Gar Fac Gar Fac Ext Cet Fac Turns Passed 10652 | 61 470 123 689 459 270 934 336 955 583 162 686 2246 1698 710 270 Spaces Moved 5926 | 44 317 103 572 316 126 473 195 514 339 96 398 1191 727 354 161 Core 6 | 6 . . . . . . . . . . . . . . . Treads 4305 | . . . . . . 330 195 514 339 96 398 1191 727 354 161 Legs 1615 | 38 317 103 572 316 126 143 . . . . . . . . . Wheels . | . . . . . . . . . . . . . . . . Hover . | . . . . . . . . . . . . . . . . Flight . | . . . . . . . . . . . . . . . . Fastest Speed 50 | 50 120 120 120 120 120 120 158 158 158 158 158 158 160 160 160 Average Speed 149 | 110 120 120 120 120 120 154 158 158 158 158 158 162 160 160 160 Slowest Speed 250 | 120 190 120 120 120 120 250 158 158 158 158 158 166 160 160 160 Overloaded Moves . | . . . . . . . . . . . . . . . . Propulsion Burnouts . | . . . . . . . . . . . . . . . . Robots Hopped . | . . . . . . . . . . . . . . . . Cave-ins Triggered . | . . . . . . . . . . . . . . . . Exploration Rate (%) 45 | 3 55 30 89 67 15 72 43 14 61 3 63 31 84 95 6 Regions Visited 15 Branch Regions 6 Pre-discovered Areas 2 | . . . 1 1 . . . . . . . . . . . Known Exits Taken 3 | . . . . . . 1 . 1 . 1 . . . . . Unknown Exits Taken 9 | 1 1 1 1 1 1 . . . . . . 1 1 1 . Scrap Searched 1 | . . . . 1 . . . . . . . . . . . Spaces Dug 8 | . . . . . . . . . . . . 8 . . . Terrain Destroyed 161 | . 59 . . . 7 56 . 6 . . . 30 . 1 2 Melee . | . . . . . . . . . . . . . . . . Projectile 70 | . . . . . 7 34 . 6 . . . 20 . 1 2 AOE 91 | . 59 . . . . 22 . . . . . 10 . . . Terrain Rammed . | . . . . . . . . . . . . . . . . Walls Destroyed . | . . . . . . . . . . . . . . . . Machines Disabled . | . . . . . . . . . . . . . . . . Actions | -11 -10 -10 -10 -9 -8 -8 -8 -7 -7 -6 -6 -6 -6 -6 -5 --------- Run | Scr Mat Min Exi Min Mat Sto Gar Fac Gar Fac Gar Fac Ext Cet Fac Total 7651 | 53 367 102 576 382 245 679 223 664 391 107 457 1504 1239 492 170 Wait 894 | . 6 . . 51 100 127 7 106 17 4 16 196 170 91 3 Move 5912 | 43 316 102 571 315 125 472 194 514 338 95 397 1190 726 353 161 Hop . | . . . . . . . . . . . . . . . . Pick Up 46 | 4 4 . 1 . 3 4 . 9 3 . 2 6 3 7 . Fast Attach 39 | 6 2 . . . 2 7 . 2 1 2 . 12 2 3 . Attach 16 | . 2 . . . 2 . . 2 . 2 . 1 3 2 2 Detach 10 | . . . . . 2 1 . 2 . 3 . 1 1 . . Swap 45 | . 11 . . 4 3 5 . 3 4 . . 7 4 4 . Drop 88 | . 5 . 4 4 2 13 . 11 8 1 1 19 5 15 . Fire 316 | . 21 . . 8 6 49 22 15 20 . 41 70 46 17 1 Melee . | . . . . . . . . . . . . . . . . Ram . | . . . . . . . . . . . . . . . . Kick . | . . . . . . . . . . . . . . . . Crush 6 | . . . . . . 1 . . . . . 2 2 . 1 Escape Stasis . | . . . . . . . . . . . . . . . . Rewire 279 | . . . . . . . . . . . . . 277 . 2 Trap . | . . . . . . . . . . . . . . . . Miscellaneous . | . . . . . . . . . . . . . . . . Route ------- -11/Scrapyard -10/Materials (discovered 3 exits: [*Mat x2] / [*Min]) -10/Mines -10/Exiles -9/Mines -8/Materials -8/Storage -8/Garrison (discovered 2 exits: *Fac x2) -7/Factory -7/Garrison (discovered 3 exits: *Fac x3) -6/Factory -6/Garrison (discovered 3 exits: *Fac x3) -6/Factory (discovered 5 exits: *Fac x3 / [*Low] / *Ext) -6/Extension (discovered 2 exits: *Fac / *Cet) -6/Cetus (discovered 3 exits: *Fac x2 / [*Arc]) -5/Factory History --------- Turn | Location | Event 9 | -11/Scrapyard | Discovered new exit (range 15) 62 | -11/Scrapyard | Entered Materials 281 | -10/Materials | Discovered new exit (range 11) 301 | -10/Materials | Build established: Mutant 370 | -10/Materials | Core integrity fell below 50% 397 | -10/Materials | Lost 3 parts (1p1n1w) 498 | -10/Materials | Discovered new exit (range 4) 511 | -10/Materials | Discovered new exit (range 16) 532 | -10/Materials | Entered Mines 649 | -10/Mines | Deemed a non-threat by the Exiles lab entrance 650 | -10/Mines | Discovered new exit (range 5) 655 | -10/Mines | Entered Exiles 684 | -10/Exiles | Met 8R-AWN 705 | -10/Exiles | Met EX-HEX 753 | -10/Exiles | Met EX-DEC 847 | -10/Exiles | Visited The Gauntlet 975 | -10/Exiles | Learned location of Zion (-6) 1044 | -10/Exiles | Discovered new exit (range 14) 1114 | -10/Exiles | Met EX-BIN 1131 | -10/Exiles | Aligned with FarCom system 1132 | -10/Exiles | Given EX-Vault access code 1210 | -10/Exiles | Opened EX-Vault 1227 | -10/Exiles | Found XL Autogun Array 1252 | -10/Exiles | Warned to stay clear of 0b10 Research branches 1344 | -10/Exiles | Left Exiles lab with XL Autogun Array 1344 | -10/Exiles | Entered Mines 1348 | -9/Mines | Met a Derelict bent on vengeance 1647 | -9/Mines | Met a Derelict testing a Signal Generator 1784 | -9/Mines | Discovered new exit (range 15) 1803 | -9/Mines | Entered Materials 1803 | -8/Materials | Evolved 4 slots: Propulsion x1, Utility x1, Weapon x2 2061 | -8/Materials | Discovered new exit (range 11) 2073 | -8/Materials | Entered Storage 2380 | -8/Storage | Garrison activated, responded to threat 2743 | -8/Storage | Build established: Tank 2781 | -8/Storage | Repaired Imp. Weapon Shielding 2821 | -8/Storage | Repaired Adv. Treads 2949 | -8/Storage | Garrison activated, responded to threat 3006 | -8/Storage | Identified exit to Garrison 3007 | -8/Storage | Entered Garrison 3054 | -8/Garrison | Destroyed 9 combat bots 3108 | -8/Garrison | Triggered checkpoint 3176 | -8/Garrison | Discovered new exit (range 15) 3256 | -8/Garrison | Triggered checkpoint 3311 | -8/Garrison | Discovered new exit (range 12) 3337 | -8/Garrison | Installed Relay Interface Framework 3343 | -8/Garrison | Entered Factory 3343 | -7/Factory | Evolved 2 slots: Utility x2 3411 | -7/Factory | Repaired Imp. Weapon Shielding 3664 | -7/Factory | Build established: Scavenger-Tank 4298 | -7/Factory | Identified exit to Garrison 4298 | -7/Factory | Entered Garrison 4460 | -7/Garrison | Triggered checkpoint 4465 | -7/Garrison | Destroyed 8 combat bots 4514 | -7/Garrison | Discovered new exit (range 13) 4596 | -7/Garrison | Triggered checkpoint 4677 | -7/Garrison | Discovered new exit (range 15) 4774 | -7/Garrison | Triggered checkpoint 4842 | -7/Garrison | Discovered new exit (range 13) 4875 | -7/Garrison | Expanded RIF knowledge: Zone Cloak 4881 | -7/Garrison | Entered Factory 4881 | -6/Factory | Evolved 2 slots: Utility x2 5010 | -6/Factory | System corruption reached 10% 5041 | -6/Factory | Identified exit to Garrison 5043 | -6/Factory | Entered Garrison 5128 | -6/Garrison | Triggered checkpoint 5284 | -6/Garrison | Triggered checkpoint 5289 | -6/Garrison | Discovered new exit (range 14) 5354 | -6/Garrison | Triggered checkpoint 5442 | -6/Garrison | Triggered checkpoint 5445 | -6/Garrison | Discovered new exit (range 15) 5638 | -6/Garrison | Triggered checkpoint 5698 | -6/Garrison | Discovered new exit (range 12) 5723 | -6/Garrison | Expanded RIF knowledge: Hotswap 5729 | -6/Garrison | Entered Factory 6176 | -6/Factory | Build established: Skirmisher 6213 | -6/Factory | Discovered new exit (range 5) 6358 | -6/Factory | Discovered new exit (range 13) 6672 | -6/Factory | Fabricated Hyb. Antimatter Reactor (x2) 7217 | -6/Factory | Discovered new exit (range 15) 7745 | -6/Factory | Discovered new exit (range 16) 7951 | -6/Factory | Discovered new exit (range 16) 7975 | -6/Factory | Entered Extension 7981 | -6/Extension | Disrupted transfer network 8034 | -6/Extension | Rescued a captive Derelict 8051 | -6/Extension | Rescued a captive Derelict 8052 | -6/Extension | Rescued a captive Derelict 8158 | -6/Extension | Rescued a captive Derelict 8292 | -6/Extension | Rescued a captive Derelict 8348 | -6/Extension | Rescued a captive Derelict 8349 | -6/Extension | Rescued a captive Derelict 8387 | -6/Extension | Rescued a captive Derelict 8420 | -6/Extension | Build established: Commander-Skirmisher 8452 | -6/Extension | Spotted B-75 Beast 8462 | -6/Extension | Spotted B-75 Beast 8474 | -6/Extension | Destroyed B-75 Beast 8551 | -6/Extension | Destroyed B-75 Beast 8885 | -6/Extension | Build established: Scavenger-Tank 9051 | -6/Extension | Rescued A7 9239 | -6/Extension | Rescued a captive Derelict 9570 | -6/Extension | Rescued a captive Derelict 9570 | -6/Extension | Rescued a captive Derelict 9634 | -6/Extension | Found Prototype Protection 9635 | -6/Extension | Identified Med. Regenerative Plating 9650 | -6/Extension | Discovered new exit (range 10) 9652 | -6/Extension | Discovered new exit (range 6) 9673 | -6/Extension | Entered Cetus 9673 | -6/Cetus | Accompanied by 13 allies (A7) 9678 | -6/Cetus | Acquired a Cetus Manufacturing Module code from A7 9694 | -6/Cetus | Spotted Cetus Guard 9694 | -6/Cetus | Spotted Cetus Guard 9697 | -6/Cetus | Spotted Cetus Guard 9704 | -6/Cetus | Allies destroyed Cetus Guard 9710 | -6/Cetus | Allies destroyed Cetus Guard 9716 | -6/Cetus | Allies destroyed Cetus Guard 9812 | -6/Cetus | Discovered new exit (range 15) 9986 | -6/Cetus | Started Cetus Manufacturing Module 10011 | -6/Cetus | Manufactured an Enhanced Grunt 10036 | -6/Cetus | Manufactured an Enhanced Grunt 10061 | -6/Cetus | Manufactured an Enhanced Grunt 10086 | -6/Cetus | Manufactured an Enhanced Grunt 10111 | -6/Cetus | Manufactured an Enhanced Grunt 10167 | -6/Cetus | Escorted A7 to Cetus Mainframe 10264 | -6/Cetus | Discovered new exit (range 15) 10303 | -6/Cetus | Spotted Cetus Guard 10303 | -6/Cetus | Spotted Cetus Guard 10307 | -6/Cetus | Allies destroyed Cetus Guard 10307 | -6/Cetus | Spotted Cetus Guard 10311 | -6/Cetus | Spotted Cetus Guard 10316 | -6/Cetus | Discovered new exit (range 15) 10319 | -6/Cetus | Allies destroyed Cetus Guard 10319 | -6/Cetus | Allies destroyed Cetus Guard 10320 | -6/Cetus | Allies destroyed Cetus Guard 10325 | -6/Cetus | Met Revision 17 10383 | -6/Cetus | Entered Factory 10383 | -5/Factory | Accompanied by 9 allies (A7) 10383 | -5/Factory | Evolved 2 slots: Propulsion x1, Utility x1 10388 | -5/Factory | Received a hacking code to weaken MAIN.C 10653 | -5/Factory | Self-destructed Last Messages --------------- 10601_ Current location identified: Factory >>Force(Extract) EXTRACTED[Enh. Gauss Cannon] 10601_ ALERT: Suspicious activity at Scanalyzer F004. Dispatching Investigation squad. 10642_ ALERT: All DSF locations entering lockdown mode. 10645_ HV Slug penetrates Fusion Modulator. 10646_ FM-1QH(h) suffers critical hit (Burn). 10646_ FM-1QH(h) destroyed. 10650_ Fusion Modulator explodes. 10650_ Q9-Q9G(h) destroyed. 10650_ Fusion Modulator explodes. 10650_ Enhanced Grunt critical meltdown. 10650_ 8G-0QX(b) destroyed. 10650_ Enhanced Grunt overheating. 10650_ G-50 Soldier destroyed. 10652_ Enhanced Grunt critical meltdown. 10652_ Enhanced Grunt overheating. 10652_ Destroyed Lgt. Angular Momentum Engine. 10653_ Enhanced Grunt heat short circuits Prototype Leg. Map ----- +----------------------------------------------------+ | | | | | | | | | | | | | | | ????????????????????????????????????????#########? | | ????????????????????????????????????????? = # | | ???????????????????????????????????????? # | | ????????????????????????????????????????"""" # | | ???????????????????????????#####???????""""" # | | ???????????????????????????+ ???? """""" "" # | | ???????????????????????????# #???# """""" "" # | | ???????????????????????????# #???# "" # | | ???????????????????????????# #?????""""""" S # | | ???????????????????????????# #???# """"""" "" # | | ???????????????????????????# #???? """"""" "" # | | ???????????????????????????# #???# """"""" "" # | | ???????????????????????????# #???# # | | ????????????#########+###### ###########+###### | | ??????????? ^ | | ??????????? | | ?????????? * | | ?????????? " """ | | ?????????? @ " """ | | ?????????????????#####+##; " """ | | ????????????????????? ; g | | ???????????????????# " | | ???????????????????#! ; % g "" =/ | | ???????????????????# ; "" =/ | | ???????????????????# ; g ? | | ???????????????????# ; | | ???????????????????+ # ?#+###### | | ???????????????????# # g ????????? | | ???????????????????# # %g ?????????? | | ???????????????????# ! # ###????????? | | ???????????????????# # #??????????? | | ???????????????????# # g #??????????? | | ???????????????????####### #??????????? | | ?????????????????????????##########/##???????????? | | ??????????????????????????????????? ????????????? | | ??????????????????????????????????? ????????????? | | ?????????????????????????????????????????????????? | | ?????????????????????????????????????????????????? | | ?????????????????????????????????????????????????? | | ?????????????????????????????????????????????????? | | ?????????????????????????????????????????????????? | | ?????????????????????????????????????????????????? | | ?????????????????????????????????????????????????? | +----------------------------------------------------+ Best States ------------- Heat Dissipation 62 Energy Generation 25 Energy Capacity 1100 Matter Stores 500 Matter Capacity 500 Sight Range 16 Terrain Scan Density 10 Additional Mass Support 12 Armor Coverage 1125 Resistance: TH 15 Weapon Shielding 66 Phase Shifting 5 Evasion (%) 59 Core Analysis 6 Recoil Reduction 4 Item Schematics ----------------- Imp. Weapon Shielding | -6/Factory | Scanalyzed Enh. Gauss Cannon | -5/Factory | Extracted Robot Schematics ------------------ None Fabricated ------------ Hyb. Antimatter Reactor | x2 | -6/Factory | Preloaded Alien Tech Used ----------------- None Achievements -------------- Main Advantage Project G-00 Revising The Future Challenges ------------ None Game ------ Seed CouplerDecoderShielding Manual? 0 Play Time 01:29:51 Cumulative 115.5 hours Start 2022.03.18 @ 17:45:10 End 2022.03.19 @ 15:08:48 Sessions 5 Manual Loads 0 Difficulty Rogue Special Mode None Game No. 146 Rogue 146 Adventurer 0 Explorer 0 Win Type - Total 0 Types 0/0/0/0/0/0/0/0/0 Lore% 53 Gallery% 63 Achievement% 51 Wizard Run 0 Options --------- ASCII 0 Keyboard 1 Movement Numpad Keybinds 0 Fullscreen 2 Font 18/SmallcapsGlow Map View 76x50 Tactical HUD 1 Map Filters NONE Filters NONE Steam 1 RUN: 51e26ba1-29cd-4bba-9fb8-e396276985a8